fUST/lending_fUST_20251118
["ID","MTS","AMOUNT","RATE_DAILY","PERIOD"]
[394323578,1763451038671,-500.0,0.00023401,2]
[394323579,1763451038680,-500.0,0.00023401,2]
[394323580,1763451038690,-500.0,0.00023401,2]
[394323581,1763451038699,-1057.45242579,0.00023401,2]
[394323582,1763451038708,-500.0,0.00023401,2]
[394323583,1763451038719,-500.0,0.00023401,2]
[394323584,1763451038728,-500.0,0.00023401,2]
[394323585,1763451038738,-500.0,0.00023401,2]
[394323586,1763451038747,-500.0,0.00023401,2]
[394323587,1763451038756,-500.0,0.00023401,2]
[394323588,1763451038766,-1057.45242579,0.00023401,2]
[394323589,1763451038775,-500.0,0.00023401,2]
[394323590,1763451038785,-500.0,0.00023401,2]
[394323591,1763451038794,-500.0,0.00023401,2]
[394323592,1763451038803,-500.0,0.00023401,2]
[394323593,1763451038813,-500.0,0.00023401,2]
[394323594,1763451038822,-500.0,0.00023401,2]
[394323595,1763451038831,-1057.45242579,0.00023401,2]
[394323596,1763451038841,-500.0,0.00023401,2]
[394323597,1763451038850,-500.0,0.00023401,2]
[394323598,1763451038862,-500.0,0.00023401,2]
[394323599,1763451038871,-500.0,0.00023401,2]
[394323600,1763451038880,-1057.45242579,0.00023401,2]
[394323601,1763451038890,-500.0,0.00023401,2]
[394323602,1763451038899,-500.0,0.00023401,2]
[394323603,1763451038908,-500.0,0.00023401,2]
[394323604,1763451038917,-500.0,0.00023401,2]
[394323605,1763451038926,-500.0,0.00023401,2]
[394323606,1763451038935,-500.0,0.00023401,2]
[394323607,1763451038945,-500.0,0.00023401,2]
[394323608,1763451038955,-1057.45242579,0.00023401,2]
[394323609,1763451038964,-500.0,0.00023401,2]
[394323610,1763451038974,-500.0,0.00023401,2]
[394323611,1763451038983,-500.0,0.00023401,2]
[394323612,1763451038992,-500.0,0.00023401,2]
[394323614,1763451039001,-1057.45242579,0.00023401,2]
[394323615,1763451039010,-500.0,0.00023401,2]
[394323616,1763451039020,-500.0,0.00023401,2]
[394323617,1763451039029,-500.0,0.00023401,2]
[394323618,1763451039039,-500.0,0.00023401,2]
[394323619,1763451039048,-1057.45242579,0.00023401,2]
[394323620,1763451039058,-500.0,0.00023401,2]
[394323621,1763451039067,-500.0,0.00023401,2]
[394323622,1763451039076,-500.0,0.00023401,2]
[394323623,1763451039086,-500.0,0.00023401,2]
[394323624,1763451039095,-500.0,0.00023401,2]
[394323625,1763451039105,-1057.45242579,0.00023401,2]
[394323626,1763451039114,-500.0,0.00023401,2]
[394323627,1763451039123,-500.0,0.00023401,2]
[394323628,1763451039132,-500.0,0.00023401,2]
[394323629,1763451039141,-1057.45242579,0.00023401,2]
[394323630,1763451039151,-500.0,0.00023401,2]
[394323631,1763451039160,-500.0,0.00023401,2]
[394323632,1763451039170,-500.0,0.00023401,2]
[394323633,1763451039180,-1057.45242579,0.00023401,2]
[394323634,1763451039190,-500.0,0.00023401,2]
[394323635,1763451039199,-1057.45242579,0.00023401,2]
[394323636,1763451039209,-500.0,0.00023401,2]
[394323637,1763451039220,-500.0,0.00023401,2]
[394323638,1763451039229,-1057.45242579,0.00023401,2]
[394323639,1763451039239,-500.0,0.00023401,2]
[394323640,1763451039248,-1057.45242579,0.00023401,2]
[394323641,1763451039258,-1057.45242579,0.00023401,2]
[394323642,1763451039267,-1057.45242579,0.00023401,2]
[394323643,1763451039277,-1057.45242579,0.00023401,2]
[394323644,1763451039287,-1057.45242579,0.00023401,2]
[394323645,1763451039296,-1057.45242579,0.00023401,2]
[394323646,1763451039305,-1057.45242579,0.00023401,2]
[394323647,1763451039315,-1057.45242579,0.00023401,2]
[394323648,1763451039324,-1057.45242579,0.00023401,2]
[394323649,1763451039333,-1057.45242579,0.00023401,2]
[394323650,1763451039342,-1057.45242579,0.00023401,2]
[394323651,1763451039351,-1057.45242579,0.00023401,2]
[394323652,1763451039361,-1057.45242579,0.00023401,2]
[394323653,1763451039370,-6021.45191013,0.00023402,30]
[394323654,1763451039379,-1200.0,0.00024209,2]
[394323656,1763451039388,-8244.83494828,0.0002421,2]
[394323658,1763451039397,-300.0,0.00024444,2]
[394323659,1763451039407,-2066.24,0.00024445,10]
[394323660,1763451039416,-2631.01,0.00024445,10]
[394323662,1763451039425,-2192.51,0.00024445,10]
[394323664,1763451039435,-1827.09,0.00024445,10]
[394323665,1763451039444,-300.0,0.00024454,2]
[394323666,1763451039454,-500.0,0.00024454,2]
[394323667,1763451039464,-464.67615245,0.00024454,2]
[394323668,1763451039474,-500.0,0.00024454,2]
[394323669,1763451039483,-500.0,0.00024454,2]
[394323670,1763451039492,-360.23868056,0.00024454,2]
[394323671,1763451039502,-500.0,0.00024454,2]
[394323673,1763451039511,-500.0,0.00024454,2]
[394323675,1763451039521,-500.0,0.00024455,2]
[394323676,1763451039530,-50000.0,0.00024455,2]
[394323677,1763451039540,-578.1605968,0.00024473,2]
[394323678,1763451039549,-501.3115562,0.00024473,2]
[394323679,1763451039559,-500.0,0.00024473,2]
[394323680,1763451039568,-501.31858301,0.00024473,2]
[394323681,1763451039577,-500.0,0.00024473,2]
[394323682,1763451039586,-500.0,0.00024473,2]
[394323683,1763451039595,-4840.44,0.000245,7]
[394323684,1763451039604,-255.56,0.000245,7]
[394323685,1763451039614,-151.0,0.00024658,7]
[394323686,1763451039624,-151.0,0.00024658,7]
[394323687,1763451039634,-170.155852,0.00024658,7]
[394323688,1763451039643,-151.0,0.00024658,7]
[394323689,1763451039653,-151.0,0.00024658,7]
[394323690,1763451039662,-151.0,0.00024658,7]
[394323691,1763451039671,-155.485935,0.00024658,7]
[394323692,1763451039679,-175.918206,0.00024658,7]
[394323693,1763451039689,-154.822208,0.00024658,7]
[394323694,1763451039698,-151.0,0.00024658,7]
[394323695,1763451039707,-151.0,0.00024658,7]
[394323696,1763451039716,-1539.73494867,0.00024707,2]
[394323697,1763451039726,-511.68451233,0.00024729,2]
[394323698,1763451039735,-408.14123647,0.00025,2]
[394323699,1763451039745,-500.0,0.00025021,2]
[394323700,1763451039754,-400.77541225,0.00025292,2]
[394323701,1763451039763,-238.66029621,0.00026,2]
[394323702,1763451039772,-1652.06421941,0.00026,30]
[394323703,1763451039781,-1680.0,0.00026368,2]
[394323704,1763451039790,-179.57357416,0.0002691,2]
[394323705,1763451039799,-199.71325752,0.0002739,2]
[394323706,1763451039809,-150.0,0.0002739,2]
[394323707,1763451039818,-17020.96057599,0.000275,2]
[394323708,1763451039827,-179.57357416,0.00027879,7]
[394323709,1763451039836,-151.0,0.0002789,7]
[394323710,1763451039846,-151.0,0.0002789,7]
[394323711,1763451039855,-151.0,0.0002789,7]
[394323712,1763451039868,-151.0,0.0002789,7]
[394323713,1763451039878,-151.0,0.0002789,7]
[394323714,1763451039887,-353.17520968,0.00027914,2]
[394323715,1763451039896,-1734.88628714,0.0002799,2]
[394323716,1763451039911,-1143.24370011,0.0002799,2]
[394323717,1763451039921,-22769.51728363,0.0002799,2]
[394323718,1763451039930,-2156.05252683,0.00028,2]
[394323719,1763451039941,-417.0,0.00028719,2]
[394323720,1763451039950,-699.7913842,0.0002872,2]
[394323722,1763451039959,-3775.55638818,0.00028777,2]
[394323723,1763451039970,-1142.87782055,0.00028777,2]
[394323725,1763451039979,-151.0,0.0002886,2]
[394323727,1763451039987,-151.0,0.0002886,2]
[394323728,1763451039997,-151.0,0.0002886,2]
[394323730,1763451040006,-151.0,0.0002886,2]
[394323732,1763451040016,-151.0,0.0002886,2]
[394323733,1763451040025,-151.0,0.0002886,2]
[394323734,1763451040034,-151.0,0.0002886,2]
[394323735,1763451040043,-151.0,0.0002886,2]
[394323736,1763451040052,-151.0,0.0002886,2]
[394323737,1763451040061,-151.0,0.0002886,2]
[394323738,1763451040070,-151.0,0.0002886,2]
[394323739,1763451040079,-151.0,0.0002886,2]
[394323740,1763451040088,-151.0,0.0002886,2]
[394323741,1763451040096,-151.0,0.0002886,2]
[394323742,1763451040106,-151.0,0.0002886,2]
[394323743,1763451040115,-151.0,0.0002886,2]
[394323744,1763451040124,-151.0,0.0002886,2]
[394323745,1763451040133,-301.99999997,0.0002886,2]
[394323746,1763451040142,-44525.9929804,0.00028866,2]
[394323747,1763451040151,-500.0,0.00028873,5]
[394323748,1763451040160,-500.0,0.00028873,5]
[394323749,1763451040169,-500.83412968,0.00028873,5]
[394323750,1763451040178,-501.21893165,0.00028873,5]
[394323751,1763451040187,-221.17986121,0.00028873,5]
[394323752,1763451040196,-151.0,0.00028876,7]
[394323753,1763451040204,-170.526481,0.00028876,7]
[394323754,1763451040213,-159.570828,0.00028876,7]
[394323755,1763451040223,-151.0,0.00028876,7]
[394323756,1763451040233,-151.0,0.00028877,7]
[394323757,1763451040242,-151.0,0.00028877,7]
[394323758,1763451040251,-151.0,0.00028886,7]
[394323759,1763451040260,-151.0,0.00028886,7]
[394323760,1763451040269,-151.0,0.00028895,7]
[394323761,1763451040280,-500.0,0.00028895,30]
[394323762,1763451040290,-301.87,0.00028895,30]
[394323763,1763451040299,-3174.5086547,0.00028898,2]
[394323764,1763451040309,-431.47,0.000289,14]
[394323765,1763451040318,-886.85498208,0.00029,2]
[394323766,1763451040327,-505.7527413,0.00029,7]
[394323767,1763451040338,-286.144364,0.00029,7]
[394323768,1763451040349,-693.56030378,0.00029421,5]
[394323769,1763451040364,-1000.0,0.00029421,5]
[394323770,1763451040373,-224.1911478,0.00029816,30]
[394323771,1763451040382,-151.0,0.00029816,7]
[394323772,1763451040391,-500.0,0.00029816,30]
[394323773,1763451040402,-500.0,0.00029816,30]
[394323774,1763451040411,-500.0,0.00029816,30]
[394323775,1763451040421,-603.36,0.00029816,30]
[394323776,1763451040430,-1000.0,0.00029816,2]
[394323777,1763451040439,-1000.0,0.00029816,2]
[394323778,1763451040448,-1000.0,0.00029816,2]
[394323779,1763451040457,-1000.0,0.00029816,2]
[394323780,1763451040467,-1000.0,0.00029816,2]
[394323781,1763451040476,-1000.0,0.00029816,2]
[394323782,1763451040485,-151.0,0.00029817,7]
[394323783,1763451040494,-151.0,0.00029817,7]
[394323784,1763451040504,-151.0,0.00029817,7]
[394323785,1763451040513,-195.425886,0.00029817,7]
[394323786,1763451040522,-151.000003,0.00029817,7]
[394323787,1763451040531,-158.336601,0.00029817,7]
[394323788,1763451040540,-158.336601,0.00029817,7]
[394323789,1763451040551,-158.336601,0.00029817,7]
[394323790,1763451040561,-158.336601,0.00029817,7]
[394323791,1763451040570,-158.336601,0.00029817,7]
[394323792,1763451040580,-158.336601,0.00029817,7]
[394323793,1763451040590,-158.336601,0.00029817,7]
[394323794,1763451040599,-158.336601,0.00029817,7]
[394323795,1763451040609,-231.25143026,0.00029817,2]
[394323796,1763451040619,-218.43017098,0.00029817,2]
[394323797,1763451040628,-153.44527,0.00029817,7]
[394323798,1763451040638,-151.0,0.00029817,7]
[394323799,1763451040648,-203.462616,0.00029817,7]
[394323800,1763451040656,-151.0,0.00029817,7]
[394323801,1763451040666,-8905.19859608,0.00029958,2]
[394323802,1763451040675,-1074.76866201,0.00029968,5]
[394323803,1763451040684,-407.06515501,0.00029973,5]
[394323804,1763451040692,-501.11545329,0.00029973,5]
[394323805,1763451040702,-502.07370211,0.00029973,5]
[394323806,1763451040711,-502.39316866,0.00029973,5]
[394323807,1763451040720,-501.76205143,0.00029973,5]
[394323808,1763451040730,-64188.97720068,0.0003,30]
[394323809,1763451040738,-3012.91426652,0.0003,2]
[394323810,1763451040748,-6639.04620429,0.00031,3]
[394323811,1763451040757,-350.0,0.00031,60]
[394323812,1763451040766,-1142.87782054,0.00031237,2]
[394323813,1763451040775,-176.41637302,0.0003138,2]
[394323814,1763451040784,-213.293,0.00031881,30]
[394323815,1763451040793,-4840.44,0.000319,7]
[394323816,1763451040803,-255.56,0.000319,7]
[394323817,1763451040812,-158.336601,0.00031942,31]
[394323818,1763451040822,-158.336601,0.00031942,31]
[394323819,1763451040831,-158.336601,0.00031942,31]
[394323820,1763451040840,-158.336601,0.00031942,31]
[394323821,1763451040927,-11182.54061044,0.00032,12]
[394323822,1763451040939,-176.41637302,0.0003233,56]
[394323823,1763451040948,-500.0,0.00032876,2]
[394323824,1763451040958,-151.0,0.00032877,31]
[394323825,1763451040970,-319.78736287,0.00032877,7]
[394323826,1763451040980,-489.30025741,0.00033173,5]
[394323827,1763451040989,-158.336601,0.00033188,31]
[394323828,1763451040998,-158.336601,0.00033188,31]
[394323829,1763451041008,-158.336601,0.00033188,31]
[394323830,1763451041017,-158.336601,0.00033188,31]
[394323831,1763451041026,-151.0,0.00033188,15]
[394323832,1763451041035,-151.0,0.00033199,31]
[394323833,1763451041044,-153.620232,0.00033199,31]
[394323834,1763451041054,-20911.39227692,0.0003357,4]
[394323835,1763451041063,-1142.87782054,0.00033698,2]
[394323836,1763451041072,-307.11,0.000337,14]
[394323837,1763451041082,-649.44779988,0.00033972,2]
[394323838,1763451041091,-1012.41960092,0.00034,2]
[394323839,1763451041100,-194.07640182,0.000348,2]
[394323840,1763451041109,-150.0,0.00034982,2]
[394323841,1763451041118,-12397.28061117,0.00035,2]
[394323842,1763451041128,-160.0,0.00035388,2]
[394323843,1763451041137,-151.0,0.00035616,31]
[394323844,1763451041147,-163.170876,0.00035616,31]
[394323845,1763451041156,-500.0,0.00035616,2]
[394323846,1763451041166,-500.0,0.00035616,2]
[394323847,1763451041176,-500.0,0.00035616,2]
[394323848,1763451041185,-500.0,0.00035616,2]
[394323849,1763451041195,-500.0,0.00035616,2]
[394323850,1763451041204,-539.41987686,0.00035616,2]
[394323851,1763451041213,-431.47,0.000358,30]
[394323852,1763451041226,-500.0,0.0003602,5]
[394323853,1763451041235,-1142.87782054,0.00036158,2]
[394323854,1763451041244,-166.46949435,0.00036236,5]
[394323855,1763451041254,-515.58010862,0.00036236,5]
[394323856,1763451041263,-150.0,0.00036647,2]
[394323857,1763451041273,-468.19908073,0.00036986,15]
[394323858,1763451041282,-151.0,0.000378,12]
[394323859,1763451041291,-4840.44,0.000378,14]
[394323860,1763451041302,-255.56,0.000378,7]
[394323861,1763451041313,-8905.19859608,0.00038196,3]
[394323862,1763451041322,-3775.55638813,0.00038206,2]
[394323863,1763451041331,-150.0,0.00038313,2]
[394323864,1763451041341,-1391.47174998,0.00038418,21]
[394323865,1763451041352,-307.11,0.000385,14]
[394323866,1763451041362,-180.57566238,0.00038618,2]
[394323867,1763451041371,-1142.87782054,0.00038618,2]
[394323868,1763451041380,-115767.581749,0.00038708,3]
[394323869,1763451041390,-158.336601,0.00038708,120]
[394323870,1763451041399,-158.336601,0.00038708,120]
[394323871,1763451041414,-158.336601,0.00038708,120]
[394323872,1763451041423,-158.336595,0.00038708,120]
[394323873,1763451041433,-151.0,0.00038708,15]
[394323874,1763451041443,-151.0,0.00038708,120]
[394323875,1763451041452,-151.0,0.00038708,120]
[394323876,1763451041461,-151.0,0.00038708,120]
[394323877,1763451041473,-151.0,0.00038708,120]
[394323878,1763451041482,-135811.54072562,0.00038718,2]
[394323879,1763451041498,-1000.0,0.00038718,2]
[394323880,1763451041510,-1256.26773451,0.00038718,2]
[394323881,1763451041521,-456.45967484,0.00038718,2]
[394323882,1763451041601,-3e-08,0.00038718,2]
[394323899,1763451043179,-25578.74472308,0.00038718,2]
[394323900,1763451043277,-9925.27322873,0.00038718,2]
[394323907,1763451045916,-861.50289935,0.00038708,10]
[394323908,1763451045947,-661.07710065,0.00038708,10]
[394323909,1763451045957,-59123.92612809,0.00038718,2]
[394323911,1763451046186,-46643.33058032,0.00038718,2]
[394323988,1763451229396,252.7024352,0.00030137,120]
[394324026,1763451303765,60276.62497177,0.0003886,120]
[394324071,1763451526715,3429.0,0.00019,10]
[394324762,1763452002263,232.09248862,0.00038862,120]
[394324763,1763452034097,-178.41673965,0.00020713,2]
[394324764,1763452034118,-7.35503558,0.000208,2]
[394324769,1763452045124,-492.64496442,0.000208,2]
[394324770,1763452045147,-174.44092967,0.00020822,2]
[394324771,1763452045171,-178.41673965,0.00020922,2]
[394324772,1763452045196,-11.30108583,0.00021133,2]
[394324773,1763452048111,-167.11565382,0.00021133,2]
[394324774,1763452048136,-150.0,0.00021454,2]
[394324775,1763452048160,-358.38646152,0.00021676,2]
[394324793,1763452160165,-227.133632,0.00013699,2]
[394324794,1763452160187,-150.0,0.00016943,2]
[394324795,1763452160206,-177.0,0.00018943,2]
[394324796,1763452160225,-227.133632,0.00020187,2]
[394324797,1763452160248,-204.0,0.00020943,2]
[394324798,1763452160268,-680.39568458,0.00021676,2]
[394324799,1763452160288,-325.695664,0.00021806,2]
[394324800,1763452160306,-250.0,0.00022085,2]
[394324801,1763452160331,-1000.0,0.00022395,30]
[394324802,1763452160349,-200.7014187,0.00022426,2]
[394324803,1763452160368,-3120.91516753,0.00022898,2]
[394324804,1763452160387,-231.0,0.00022943,2]
[394324805,1763452160406,-500.0,0.00022973,2]
[394324806,1763452160426,-2220.16,0.00022988,10]
[394324807,1763452160445,-3934.55,0.00022988,10]
[394324808,1763452160464,-190.05125164,0.00022997,2]
[394324809,1763452163099,-109.94874836,0.00022997,2]
[394324810,1763452163120,-319.0,0.00022998,2]
[394324811,1763452163140,-325.27330672,0.00022998,2]
[394324812,1763452163160,-500.0,0.00022998,2]
[394324813,1763452163181,-500.0,0.00022998,2]
[394324814,1763452163200,-500.0,0.00022998,2]
[394324815,1763452163221,-502.16707639,0.00022998,2]
[394324816,1763452163242,-252.67373373,0.00022998,2]
[394324817,1763452163266,-500.0,0.00022998,2]
[394324818,1763452163286,-418.82251461,0.00022998,2]
[394324819,1763452163310,-500.0,0.00022998,2]
[394324820,1763452163337,-500.0,0.00022998,2]
[394324821,1763452163358,-500.0,0.00022998,2]
[394324822,1763452163379,-231.53366658,0.00022998,2]
[394324823,1763452174097,-191.47270549,0.00022202,10]
[394324824,1763452174121,-25.59631693,0.00022426,2]
[394324879,1763452233341,-95.20041328,0.00022426,2]
[394324949,1763452240484,-80.07497482,0.00022426,2]
[394324951,1763452240495,-304.92270501,0.00022426,2]
[394324953,1763452240506,-247.02903725,0.00022898,2]
[394324955,1763452240516,-500.0,0.00022973,2]
[394324956,1763452240526,-501.92499221,0.00022973,2]
[394324957,1763452240538,-156.23906122,0.00022973,2]
[394324958,1763452240549,-300.0,0.00022987,2]
[394324959,1763452240560,-300.0,0.00022987,2]
[394324960,1763452240570,-300.0,0.00022987,2]
[394324961,1763452240581,-1200.0,0.00022987,2]
[394324962,1763452240591,-300.0,0.00022987,2]
[394324963,1763452240602,-388.0,0.00022988,3]
[394324964,1763452240613,-1581.21,0.00022988,10]
[394324965,1763452240624,-182.21346073,0.00022997,2]
[394324966,1763452240635,-403.05633517,0.00022997,2]
[394324967,1763452240645,-500.0,0.00022997,2]
[394324968,1763452240655,-500.0,0.00022997,2]
[394324969,1763452240665,-627.33353086,0.00022997,2]
[394324970,1763452240676,-500.0,0.00022997,2]
[394324971,1763452240686,-500.0,0.00022997,2]
[394324972,1763452240697,-500.0,0.00022997,2]
[394324973,1763452240708,-500.0,0.00022997,2]
[394324974,1763452240719,-500.0,0.00022997,2]
[394324975,1763452240730,-500.0,0.00022997,2]
[394324976,1763452240741,-500.0,0.00022997,2]
[394324977,1763452240752,-500.0,0.00022997,2]
[394324978,1763452240763,-500.0,0.00022997,2]
[394324979,1763452240773,-268.46633342,0.00022997,2]
[394324980,1763452240783,-500.0,0.00022997,2]
[394324981,1763452240793,-500.0,0.00022997,2]
[394324982,1763452240804,-500.0,0.00022997,2]
[394324983,1763452240815,-500.0,0.00022997,2]
[394324984,1763452240825,-500.0,0.00022997,2]
[394324985,1763452240836,-500.0,0.00022997,2]
[394324986,1763452240846,-500.0,0.00022997,2]
[394324987,1763452240857,-500.0,0.00022997,2]
[394324988,1763452240868,-500.0,0.00022997,2]
[394324989,1763452240879,-500.0,0.00022997,2]
[394324990,1763452240890,-500.0,0.00022997,2]
[394324991,1763452240902,-500.0,0.00022997,2]
[394324992,1763452240913,-500.0,0.00022997,2]
[394324993,1763452240923,-500.0,0.00022997,2]
[394324994,1763452240933,-500.0,0.00022997,2]
[394324995,1763452240944,-500.0,0.00022997,2]
[394324996,1763452240954,-500.0,0.00022997,2]
[394324997,1763452240964,-500.0,0.00022997,2]
[394324998,1763452240974,-500.0,0.00022997,2]
[394324999,1763452240984,-500.0,0.00022997,2]
[394325000,1763452240994,-500.0,0.00022997,2]
[394325001,1763452241004,-500.0,0.00022997,2]
[394325002,1763452241015,-232.90880555,0.00022997,2]
[394325003,1763452241025,-425.55090566,0.00022997,2]
[394325004,1763452241035,-500.0,0.00022997,2]
[394325005,1763452241045,-500.0,0.00022997,2]
[394325006,1763452241055,-500.0,0.00022997,2]
[394325007,1763452241066,-500.0,0.00022997,2]
[394325008,1763452241076,-500.0,0.00022997,2]
[394325009,1763452241087,-500.0,0.00022997,2]
[394325010,1763452241097,-500.0,0.00022997,2]
[394325011,1763452241109,-500.0,0.00022997,2]
[394325012,1763452241120,-500.0,0.00022997,2]
[394325013,1763452241130,-500.0,0.00022997,2]
[394325014,1763452241141,-500.0,0.00022997,2]
[394325015,1763452241152,-500.0,0.00022997,2]
[394325016,1763452241164,-500.0,0.00022997,2]
[394325017,1763452241174,-500.0,0.00022997,2]
[394325018,1763452241185,-500.0,0.00022997,2]
[394325019,1763452241197,-500.0,0.00022997,2]
[394325020,1763452241208,-500.0,0.00022997,2]
[394325021,1763452241218,-500.0,0.00022997,2]
[394325022,1763452241230,-500.0,0.00022997,2]
[394325023,1763452241243,-500.0,0.00022997,2]
[394325024,1763452241253,-500.0,0.00022997,2]
[394325025,1763452241264,-500.0,0.00022997,2]
[394325026,1763452241277,-500.0,0.00022997,2]
[394325027,1763452241287,-500.0,0.00022997,2]
[394325028,1763452241297,-500.0,0.00022997,2]
[394325029,1763452241308,-500.0,0.00022997,2]
[394325030,1763452241318,-500.0,0.00022997,2]
[394325031,1763452241328,-500.0,0.00022997,2]
[394325032,1763452241339,-500.0,0.00022997,2]
[394325033,1763452241350,-500.0,0.00022997,2]
[394325034,1763452241361,-500.0,0.00022997,2]
[394325035,1763452241372,-500.0,0.00022997,2]
[394325036,1763452241383,-500.0,0.00022997,2]
[394325037,1763452241396,-500.0,0.00022997,2]
[394325038,1763452241406,-500.0,0.00022998,2]
[394325039,1763452241417,-43135.0698581,0.00022998,2]
[394325040,1763452241431,-2759.50732294,0.00022998,2]
[394325047,1763452243137,-4105.42281896,0.00022998,2]
[394325049,1763452243148,-5129.0,0.00023,2]
[394325051,1763452243159,-178.89,0.00023,7]
[394325053,1763452243168,-3388.3,0.00023,7]
[394325055,1763452243179,-500.0,0.00023272,2]
[394325057,1763452243190,-174.44092966,0.00023284,2]
[394325059,1763452243200,-500.0,0.00023371,2]
[394325061,1763452243211,-600.0,0.00023447,20]
[394325063,1763452243221,-1000.0,0.00023521,2]
[394325065,1763452243231,-500.0,0.00023546,2]
[394325067,1763452243241,-500.0,0.0002382,2]
[394325070,1763452243252,-1518.34625138,0.00023973,2]
[394325072,1763452243268,-272.39179313,0.00023973,2]
[394325074,1763452243278,-240.16806657,0.00024068,2]
[394325095,1763452244107,-43.90838114,0.00024068,2]
[394325100,1763452246902,-215.92355229,0.00024068,2]
[394325101,1763452246912,-310.03475671,0.00024094,2]
[394325102,1763452246921,-500.0,0.00024454,2]
[394325103,1763452246930,-383.53,0.000245,14]
[394325104,1763452246939,-160.26684334,0.00024943,2]
[394325105,1763452246948,-420.0,0.00024954,2]
[394325106,1763452246957,-420.0,0.00024954,2]
[394325107,1763452246966,-330.24484786,0.00024954,2]
[394325108,1763452247056,-89.75515214,0.00024954,2]
[394325109,1763452247066,-1680.0,0.0002507,2]
[394325110,1763452247075,-410.53532305,0.00025398,7]
[394325111,1763452247084,-410.53532305,0.000257,2]
[394325112,1763452247093,-720.0,0.00025791,20]
[394325113,1763452247102,-874.58804722,0.000266,2]
[394325237,1763452410106,-3128.6,0.00022987,10]
[394325238,1763452410227,-2607.17,0.00022987,10]
[394325239,1763452410253,-2172.64,0.00022987,10]
[394325244,1763452444723,-2500.0,0.00022668,10]
[394325250,1763452521031,197.97021185,0.00038852,120]
[394325359,1763453228233,-154.96336189,0.00021781,2]
[394325360,1763453228257,-1239.5619507,0.00021854,2]
[394325361,1763453228279,-832.01410417,0.00021854,2]
[394325362,1763453228300,-257.45628451,0.00021881,2]
[394325399,1763453346090,-836.13827696,0.00021783,2]
[394325400,1763453346109,-290.25991649,0.00021881,2]
[394325401,1763453346130,-150.0,0.00021883,2]
[394325402,1763453346149,-3814.8056699,0.00021885,2]
[394325403,1763453346170,-300.0,0.0002268,2]
[394325404,1763453346190,-280.99300483,0.00022681,2]
[394325406,1763453353208,-309.07703849,0.00022681,2]
[394325409,1763453358131,-388.98214059,0.00022681,2]
[394325413,1763453365125,-1898.84082186,0.00022681,2]
[394325415,1763453369219,-912.53520922,0.00022681,2]
[394325416,1763453369247,-164.68602484,0.00022681,2]
[394325417,1763453369278,-1508.78,0.00022772,10]
[394325418,1763453369305,-275.08034466,0.00022773,2]
[394325419,1763453369332,-500.0,0.00022773,2]
[394325420,1763453369362,-25.34319424,0.0002278,2]
[394325492,1763453432330,-5000.0,0.00022317,10]
[394325493,1763453432339,-2914.86900854,0.00022542,10]
[394325494,1763453432350,-1935.51427603,0.00022542,10]
[394325495,1763453432359,-309.92672374,0.00022669,2]
[394325496,1763453432368,-300.0,0.00022769,2]
[394325497,1763453432377,-1200.0,0.00022769,2]
[394325498,1763453432386,-300.0,0.00022769,2]
[394325499,1763453432395,-1559.07,0.0002277,10]
[394325500,1763453432404,-150.0,0.00022771,2]
[394325501,1763453432413,-500.0,0.00022773,2]
[394325502,1763453432422,-300.0,0.00022779,2]
[394325503,1763453432431,-300.0,0.00022779,2]
[394325504,1763453432440,-282.13943462,0.00022779,2]